Cogmind - Beta 14 @@@ ROGUE MODE // 2024.11.16 @ 22:07:33 Player: Fangrelle Result: Destroyed by H-55 Commando with Gauss Rifle Performance ------------- Evolutions (3) 1500 Regions Visited (7) 1400 Robots Destroyed (58) 290 Value Destroyed (3060) 3060 Prototype IDs (27) 540 Alien Tech Used (0) 0 Bonus (2459) 2459 TOTAL SCORE: 9249 Bonus ------- High Alert Combat Kills 829 Follower Combat Kills 630 Entered Garrisons 200 Used RIF Installer 500 Aligned with FarCom 300 Cogmind --------- Core Integrity 0/700 Matter 193/300 Energy 100/100 System Corruption 3% Temperature Cool (0) Movement Core (50) Location -7/Factory Parts ------- > --- POWER (1) -------- (None) > --- PROPULSION (4) --- (None) > --- UTILITY (6) ------ Advanced Visual Processing Unit Relay Coupler [Brawler] (2) > --- WEAPON (2) ------- (None) > --- INVENTORY (5) ---- Improved Signal Interpreter System Shield Relay Coupler [Cutter] (29) Relay Coupler [Specialist] (17) Component Analysis Suite Peak State ------------ > --- POWER ------------ Neutrino Core > --- PROPULSION ------- Armored Treads VSS Leg Improved Carbon-fiber Leg Improved Carbon-fiber Leg > --- UTILITY ---------- Lightpack 2.0 Improved Transmission Jammer Improved Light Armor Plating PSU Rigger > --- WEAPON ----------- Chainsword Chainsword > --- INVENTORY -------- Improved Deuterium Engine Cesium-ion Thruster Field Propulsion Drive Improved Cooling System Advanced Visual Processing Unit Experimental Sensor Array Improved Signal Interpreter Actuator Array Improved Transmission Jammer Improved Light Armor Plating Reflective Plating Improved Focal Shield Advanced Shield Generator Advanced Shield Generator Hacking Suite Advanced Hacking Suite System Shield Relay Coupler [NC] Relay Coupler [NC] Relay Coupler [NC] Relay Coupler [NC] Relay Coupler [Swarmer] Relay Coupler [Cutter] Relay Coupler [Grunt] Relay Coupler [Brawler] Relay Coupler [Brawler] Relay Coupler [Sentry] Relay Coupler [Sentry] Relay Coupler [Sentry] Relay Coupler [Specialist] Relay Coupler [Hunter] Component Analysis Suite Long-range Proton Cannon Hypervelocity Gauss Cannon Missile Launcher Improved Datajack Remote Datajack Improved Plasma Cutter Chainsword [Rating: 90] Favorites ----------- Power Improved Deuterium Engine Engine Improved Deuterium Engine Power Core Light Nuclear Core Propulsion Armored Treads Treads Armored Treads Leg Improved Carbon-fiber Leg Wheel Armored Wheel Flight Unit Field Propulsion Drive Utility Lightpack 2.0 Device PSU Rigger Storage Lightpack 2.0 Processor Advanced Visual Processing Unit Hackware System Shield Protection Improved Light Armor Plating Weapon Chainsword Energy Gun Improved Medium Laser Energy Cannon Long-range Proton Cannon Ballistic Cannon Hypervelocity Gauss Cannon Launcher Missile Launcher Special Weapon Remote Datajack Impact Weapon Great Maul Slashing Weapon Chainsword Special Melee Weapon Improved Datajack Build | -11 -10 -10 -10 -9 -8 -8 -7 ------- Run | Yrd Mat Min Exi Min Mat Gar Fac Slots Evolved 6 | . . . . . 4 . 2 Power . | . . . . . . . . Propulsion 2 | . . . . . 2 . . Utility 4 | . . . . . 2 . 2 Weapon . | . . . . . . . . Parts Attached 104 | . 2 6 2 2 25 33 34 Power 10 | . . . . . 3 7 . Engine 4 | . . . . . 2 2 . Core 6 | . . . . . 1 5 . Reactor . | . . . . . . . . Propulsion 21 | . 1 2 . . 7 5 6 Treads 10 | . 1 . . . 7 2 . Leg 3 | . . . . . . 3 . Wheel 4 | . . . . . . . 4 Hover . | . . . . . . . . Flight 4 | . . 2 . . . . 2 Utility 44 | . 1 1 2 . 7 15 18 Device 27 | . 1 1 . . 4 9 12 Storage 3 | . . . 2 . 1 . . Processor 1 | . . . . . . . 1 Hackware 4 | . . . . . 1 . 3 Protection 9 | . . . . . 1 6 2 Artifact . | . . . . . . . . Weapon 29 | . . 3 . 2 8 6 10 Energy Gun 2 | . . . . . 2 . . Energy Cannon 1 | . . . . . . . 1 Ballistic Gun . | . . . . . . . . Ballistic Cannon 1 | . . . . . . . 1 Launcher 3 | . . 1 . . . 1 1 Special Weapon 2 | . . . . . . . 2 Impact Weapon 6 | . . 2 . 2 2 . . Slashing Weapon 13 | . . . . . 4 5 4 Piercing Weapon . | . . . . . . . . Special Melee Weapon 1 | . . . . . . . 1 Unidentified Prototypes 3 | . . 1 . . 2 . . Parts Lost 28 | . . 3 . . 1 7 17 Power 5 | . . . . . 1 3 1 Propulsion 11 | . . 2 . . . 4 5 Utility 6 | . . . . . . . 6 Weapon 6 | . . 1 . . . . 5 Highest Loss Streak 11 | . . 3 . . 1 3 11 To Critical Strikes . | . . . . . . . . Average Slot Usage (%) 57 | . 6 24 26 36 63 79 76 Engine 2 | . . . . . 8 4 . Core 2 | . . . . . . 3 6 Treads 15 | . . . . . 20 31 2 Leg 2 | . . . . . . 2 9 Wheel 1 | . . . . . . . 13 Device 4 | . 6 17 . . 4 5 11 Storage 14 | . . . 25 20 8 9 6 Protection 1 | . . . . . 1 3 5 Slashing Weapon 10 | . . . . . 16 17 10 Peak Build Rating 90 | . 1 12 12 17 77 77 90 Average Rating 46 | . . 5 7 14 62 69 79 On Entrance 25 | 6 6 1 11 12 16 72 77 Naked Turns 59 | . 59 . . . . . . Heaviest Build 60 | 13 2 6 60 60 25 28 31 Greatest Support 80 | 20 3 9 3 3 80 80 48 Greatest Overweight (x) 19 | . . 1 19 19 4 . 8 Average Overweight (x) 1 | . . . 14 11 . . . Largest Inventory Capacity 40 | . 5 5 20 20 40 40 40 Average Capacity 31 | . 5 5 19 17 39 40 39 Most Carried 40 | . 4 5 16 16 40 40 40 Average Carried 25 | . 1 4 11 15 28 36 35 Final Capacity 40 | 8 5 5 20 15 40 40 5 Final Carried 40 | 6 4 5 16 15 35 40 5 Class Distribution -------------------- 54% | Hauler-Mutant 37% | Mutant 8% | Bothacker-Mutant Dominant Class ---------------- Mutant | -10/Materials Mutant | -10/Mines Mutant | -10/Exiles Mutant | -9/Mines Hauler-Mutant | -8/Materials Hauler-Mutant | -8/Garrison Bothacker-Mutant | -7/Factory Resources | -11 -10 -10 -10 -9 -8 -8 -7 ----------- Run | Yrd Mat Min Exi Min Mat Gar Fac Matter Collected 1616 | 200 . 40 . 50 305 686 335 Remotely . | . . . . . . . . Salvage Created 2940 | . . 25 . 50 673 1611 581 Parts 130 | . . 5 . 1 28 74 22 Haulers Intercepted 3 | . . . . . 3 . . Recyclers Shooed . | . . . . . . . . Parts Field Recycled . | . . . . . . . . Retrieved Matter . | . . . . . . . . Parts Self-Destructed . | . . . . . . . . Prevented . | . . . . . . . . Kills | -11 -10 -10 -10 -9 -8 -8 -7 ------- Run | Yrd Mat Min Exi Min Mat Gar Fac Combat Hostiles Destroyed 48 | . . 3 . 1 6 25 13 Melee 37 | . . . . . 6 24 7 AOE 10 | . . 3 . . . 1 6 Classes Destroyed 16 | . . 1 . 1 8 4 2 Worker 3 | . . . . . 2 . 1 Builder 1 | . . . . . 1 . . Hauler 3 | . . . . . 3 . . Recycler 1 | . . . . . 1 . . Operator 1 | . . . . . 1 . . Watcher 1 | . . . . . 1 . . Swarmer 3 | . . 3 . . . . . Cutter 1 | . . . . . . 1 . Grunt 27 | . . . . . 4 14 9 Brawler 1 | . . . . . . 1 . Duelist 2 | . . . . 1 . . 1 Protector 1 | . . . . . . . 1 Sentry 6 | . . . . . 2 4 . Specialist 4 | . . . . . . 4 . Hunter 2 | . . . . . . 1 1 Programmer 1 | . . . . . . . 1 Best Kill Streak 6 | . . 3 . 1 3 4 6 Combat Bots Only 6 | . . 3 . 1 3 4 6 Max Kills in Single Turn 3 | . . 2 . 1 1 1 3 Gunslinging . | . . . . . . . . Exploded 3 | . . 2 . . . 1 3 Melee 1 | . . . . . 1 1 1 Uniques/NPCs Destroyed . | . . . . . . . . Combat | -11 -10 -10 -10 -9 -8 -8 -7 -------- Run | Yrd Mat Min Exi Min Mat Gar Fac Hostile Shots Fired 460 | . 3 23 . 2 55 183 194 Missed 137 | . . 5 . 1 15 48 68 Damage Taken 5666 | . 38 264 . 34 592 2393 2345 Core 1420 | . 38 150 . . 170 360 702 Absorbed by Shields 94 | . . . . . . 67 27 Ignored by Resistances 18 | . . . . . . . 18 Core Remaining (%) 42 | 100 . . . 24 . 3 . Volleys Fired 40 | . . 2 . . . 23 15 Largest 1 | . . 1 . . . 1 1 Hottest 61 | . . 30 . . . 36 61 Shots Fired 40 | . . 2 . . . 23 15 Gun . | . . . . . . . . Cannon 6 | . . . . . . . 6 Launcher 28 | . . 2 . . . 23 3 Special 6 | . . . . . . . 6 Kinetic 6 | . . . . . . . 6 Thermal . | . . . . . . . . Explosive 28 | . . 2 . . . 23 3 Electromagnetic . | . . . . . . . . Robot Hit Streak 5 | . . 2 . . . . 5 Robot Miss Streak 2 | . . . . . . . 2 Penetration Max . | . . . . . . . . Secondary Targets . | . . . . . . . . Shots Hit Robots 138 | . . 2 . 1 25 67 43 Core Hits 79 | . . 2 . . 13 34 30 Critical Kills 1 | . . . . . 1 . . Critical Parts Destroyed 4 | . . . . 1 . . 3 Critical Strikes 22 | . . . . 1 3 13 5 Destroy 3 | . . . . . . . 3 Smash 2 | . . . . 1 1 . . Sever 17 | . . . . . 2 13 2 Melee Attacks 208 | . . . . 1 29 138 40 Impact 6 | . . . . 1 5 . . Slashing 199 | . . . . . 24 138 37 Piercing . | . . . . . . . . Sneak Attacks 10 | . . . . . 9 . 1 Combat Hostiles . | . . . . . . . . Follow-up Attacks 24 | . . . . . 2 14 8 Damage Inflicted 5793 | . . 210 . 42 1257 2626 1658 Guns . | . . . . . . . . Cannons 56 | . . . . . . . 56 Explosions 903 | . . 210 . . . . 693 Melee 4834 | . . . . 42 1257 2626 909 Ramming . | . . . . . . . . Kinetic 56 | . . . . . . . 56 Thermal . | . . . . . . . . Explosive 903 | . . 210 . . . . 693 Electromagnetic . | . . . . . . . . Impact 261 | . . . . 42 219 . . Slashing 4573 | . . . . . 1038 2626 909 Piercing . | . . . . . . . . Highest Corruption 3 | . . . . . . 3 3 Average Corruption 2 | . . . . . . 3 1 Corruption Purged . | . . . . . . . . Corruption Blocked . | . . . . . . . . Effects 15 | . . . . . . 12 3 Message Errors 7 | . . . . . . 5 2 Matter Fused 3 | . . . . . . 3 . Heat Flow Errors 2 | . . . . . . 2 . Energy Discharges 1 | . . . . . . . 1 Data Loss (minor) 1 | . . . . . . 1 . Alerts 1 | . . . . . . 1 . Overload Shots . | . . . . . . . . Overflow Damage 219 | . . 18 . 42 121 26 12 Projectiles . | . . . . . . . . Explosions 30 | . . 18 . . . . 12 Melee 189 | . . . . 42 121 26 . Knockbacks . | . . . . . . . . Impact . | . . . . . . . . Kinetic . | . . . . . . . . Secondary . | . . . . . . . . Self-Inflicted Damage 106 | . . 50 . . . 56 . Shots 3 | . . 2 . . . 1 . Rammed . | . . . . . . . . Targets Rammed . | . . . . . . . . Kicked . | . . . . . . . . Crushed . | . . . . . . . . Highest Temperature 275 | . . . . . 5 275 36 Average Temperature 59 | . . . . . 4 79 13 Received Heat Transfer 1929 | . 21 81 . . 288 891 648 Siege Activations . | . . . . . . . . Robots Corrupted 2 | . . . . 1 1 . . Combat Hostiles 1 | . . . . 1 . . . Parts Fried 2 | . . . . 1 1 . . Impact Corruptions 3 | . . . . 1 2 . . Robots Melted . | . . . . . . . . Combat Hostiles . | . . . . . . . . Parts Melted . | . . . . . . . . Heat Transferred . | . . . . . . . . Parts Sabotaged . | . . . . . . . . Parts Stolen . | . . . . . . . . Parts Stripped . | . . . . . . . . Power Chain Reactions . | . . . . . . . . Alert | -11 -10 -10 -10 -9 -8 -8 -7 ------- Run | Yrd Mat Min Exi Min Mat Gar Fac Peak Influence 2570 | . 118 136 . 30 222 2570 1614 Initial 1348 | . . 45 . . . 23 1348 Average 840 | . 63 116 . 14 54 1155 1380 Maximum Alert Level 5 | . . . . . 1 5 5 Low Security (%) 34 | . 100 100 . 100 94 8 . Level 1 7 | . . . . . 5 11 . Level 2 7 | . . . . . . 13 . Level 3 13 | . . . . . . 25 . Level 4 19 | . . . . . . 9 93 Level 5 18 | . . . . . . 32 6 High Security . | . . . . . . . . Max Security . | . . . . . . . . Squads Dispatched 14 | . . . . . 4 . 10 Investigation 4 | . . . . . 3 . 1 Extermination 1 | . . . . . . . 1 Reinforcement 3 | . . . . . 1 . 2 Assault 6 | . . . . . . . 6 Garrison . | . . . . . . . . Intercept . | . . . . . . . . Searches Triggered . | . . . . . . . . Construction Impeded 1 | . . . . . . . 1 Haulers Reinforced . | . . . . . . . . Active Scanning Responses . | . . . . . . . . Cargo Convoy Interrupts . | . . . . . . . . Stealth | -11 -10 -10 -10 -9 -8 -8 -7 --------- Run | Yrd Mat Min Exi Min Mat Gar Fac Distress Signals 3 | . . . . . 2 . 1 Communications Jammed 29 | . . . . . . . 29 Distress Signals 29 | . . . . . . . 29 Times Spotted 130 | . 7 7 . 1 17 41 57 Peak Tracking Total 21 | . 5 5 . 1 3 5 21 Tactical Retreats 22 | . 3 2 . . 2 11 4 Traps | -11 -10 -10 -10 -9 -8 -8 -7 ------- Run | Yrd Mat Min Exi Min Mat Gar Fac Traps Triggered 3 | . . 1 . . . 2 . Indirectly . | . . . . . . . . Trap Hack Attempts . | . . . . . . . . Triggered . | . . . . . . . . Disarmed . | . . . . . . . . Reprogrammed . | . . . . . . . . Reused . | . . . . . . . . Traps Extracted . | . . . . . . . . Installed 6 | . . . . . . 6 . Triggered . | . . . . . . . . Most Traps Carried 13 | . . . . . . 13 . Objects Rigged 30 | . . . . . 7 10 13 Exploded 13 | . . . . . 3 4 6 Machines | -11 -10 -10 -10 -9 -8 -8 -7 ---------- Run | Yrd Mat Min Exi Min Mat Gar Fac Machines Disabled 7 | . . . . . . 6 1 Max in Single Turn 1 | . . . . . . 1 1 Garrison Relay 4 | . . . . . . 4 . Machines Repaired . | . . . . . . . . Machines Dismantled . | . . . . . . . . Machines Sabotaged . | . . . . . . . . Overloaded Fab Kills . | . . . . . . . . Hacking | -11 -10 -10 -10 -9 -8 -8 -7 --------- Run | Yrd Mat Min Exi Min Mat Gar Fac Machines Accessed 22 | . 1 1 2 . 8 3 7 Terminals 15 | . 1 . . . 5 3 6 Fabricators 1 | . . . . . . . 1 Repair Stations . | . . . . . . . . Recycling Units 1 | . . . . . 1 . . Scanalyzers 1 | . . . . . 1 . . Garrison Access 1 | . . . . . 1 . . Total Hacks 61 | . 4 1 5 . 24 7 20 Successful 38 | . 2 1 5 . 15 1 14 Failed 23 | . 2 . . . 9 6 6 Catastrophic 5 | . . . . . 2 2 1 Database Lockouts . | . . . . . . . . Manual 36 | . 4 . 1 . 14 3 14 Terminals 43 | . 4 . . . 15 7 17 Fabricators 3 | . . . . . . . 3 Repair Stations . | . . . . . . . . Recycling Units 2 | . . . . . 2 . . Scanalyzers 6 | . . . . . 6 . . Garrison Access 1 | . . . . . 1 . . Terminal Hacks 11 | . 1 1 5 . 1 . 3 Record 4 | . . . 4 . . . . Part Schematic 1 | . . . . . . . 1 Open Door 1 | . . 1 . . . . . Branch Access Points 2 | . 1 . . . 1 . . Alert Level 1 | . . . . . . . 1 Unreport Threat 1 | . . . . . . . 1 Derelict Proto ID Bank 1 | . . . 1 . . . . Fabricator Hacks 1 | . . . . . . . 1 Load Schematic 1 | . . . . . . . 1 Repair Station Hacks . | . . . . . . . . Recycling Unit Hacks 1 | . . . . . 1 . . Report Inventory 1 | . . . . . 1 . . Scanalyzer 6 | . . . . . 6 . . Insert Component 3 | . . . . . 3 . . Analyze 3 | . . . . . 3 . . Garrison Access Hacks 1 | . . . . . 1 . . Unlock Access 1 | . . . . . 1 . . Unauthorized Hacks 18 | . 1 . . . 6 1 10 Terminals 17 | . 1 . . . 5 1 10 Assimilate 1 | . . . . . . . 1 Botnet 12 | . 1 . . . 4 1 6 Detonate 2 | . . . . . 1 . 1 Operators 1 | . . . . . . . 1 Skim 1 | . . . . . . . 1 Fabricators . | . . . . . . . . Repair Stations . | . . . . . . . . Recycling Units 1 | . . . . . 1 . . Tunnel 1 | . . . . . 1 . . Scanalyzers . | . . . . . . . . Garrison Access . | . . . . . . . . Data Cores Recovered . | . . . . . . . . Used . | . . . . . . . . Hacking Detections 17 | . 1 . . . 6 3 7 Full Trace Events 2 | . . . . . . 1 1 Feedback Events 1 | . . . . . . . 1 Corruption 1 | . . . . . . . 1 Feedback Blocked . | . . . . . . . . Robot Schematics Acquired . | . . . . . . . . Robots Built . | . . . . . . . . Authchips . | . . . . . . . . Time . | . . . . . . . . Total Robot Build Rating . | . . . . . . . . Part Schematics Acquired 4 | . . . . . 3 . 1 Parts Built . | . . . . . . . . Authchips . | . . . . . . . . Time . | . . . . . . . . Total Part Build Rating . | . . . . . . . . Parts Repaired . | . . . . . . . . Time . | . . . . . . . . Parts Recycled . | . . . . . . . . Recycled Matter . | . . . . . . . . Retrieved Matter . | . . . . . . . . Retrieved Components . | . . . . . . . . Parts Scanalyzed 3 | . . . . . 3 . . Part Schematics Acquired 3 | . . . . . 3 . . Parts Damaged . | . . . . . . . . Bothacking | -11 -10 -10 -10 -9 -8 -8 -7 ------------ Run | Yrd Mat Min Exi Min Mat Gar Fac Used RIF Installer 1 | . . . . . . 1 . Robots Hacked 5 | . . . . . . . 5 Non-combat . | . . . . . . . . Combat 5 | . . . . . . . 5 Robot Hacks Applied 5 | . . . . . . . 5 overwrite_iff 3 | . . . . . . . 3 formatsys_high 2 | . . . . . . . 2 Relay Couplers Released 16 | . . . . . . 16 . Machine Destruction 16 | . . . . . . 16 . Attached 3 | . . . . . . . 3 Fabnet Peak Effective % . | . . . . . . . . Robots Rewired 7 | . . . . . . 6 1 Allies Hacked . | . . . . . . . . Hacks Repelled . | . . . . . . . . Allies | -11 -10 -10 -10 -9 -8 -8 -7 -------- Run | Yrd Mat Min Exi Min Mat Gar Fac Total Allies 12 | . . . . . . 6 6 Largest Group 6 | . . . . . . 5 6 Highest-Rated Group 140 | . . . . . . 108 140 Highest-Rated Ally 32 | . . . . . . 24 32 Total Orders 4 | . . . . . . 3 1 STAY 2 | . . . . . . 2 . FOLLOW 2 | . . . . . . 1 1 Ally Attacks 91 | . . . . . . 40 51 Total Damage 1727 | . . . . . . 572 1155 Kills 17 | . . . . . . 7 10 Allies Corrupted . | . . . . . . . . Allies Melted 2 | . . . . . . . 2 Intel | -11 -10 -10 -10 -9 -8 -8 -7 ------- Run | Yrd Mat Min Exi Min Mat Gar Fac Robot Analysis Total . | . . . . . . . . Derelict Logs Recovered 1 | . . 1 . . . . . Drone Launches . | . . . . . . . . Drone Recoveries . | . . . . . . . . Exploration | -11 -10 -10 -10 -9 -8 -8 -7 ------------- Run | Yrd Mat Min Exi Min Mat Gar Fac Turns Passed 9792 | . 111 110 2955 431 1513 3607 1065 Spaces Moved 4074 | 1 201 170 387 67 674 1712 862 Core 816 | . 201 124 387 67 25 . 12 Treads 2038 | . . . . . 649 1389 . Legs 685 | 1 . . . . . 323 361 Wheels 380 | . . . . . . . 380 Hover . | . . . . . . . . Flight 155 | . . 46 . . . . 109 Fastest Speed 34 | 120 50 34 50 500 100 110 37 Average Speed 206 | 120 50 50 763 641 190 158 95 Slowest Speed 1000 | 120 50 115 1000 1000 250 170 450 Overloaded Moves . | . . . . . . . . Propulsion Burnouts . | . . . . . . . . Robots Hopped 5 | . . . . . . . 5 Cave-ins Triggered 1 | . . . . . . 1 . Exploration Rate (%) 42 | 2 47 39 70 27 54 81 23 Regions Visited 7 Branch Regions 3 Pre-discovered Areas 3 | . . 1 1 . 1 . . Known Exits Taken 2 | . 1 . . . 1 . . Unknown Exits Taken 4 | 1 . 1 1 1 . . . Scrap Searched 1 | . . 1 . . . . . Spaces Dug 7 | . . . . . . 7 . Terrain Destroyed 91 | . . 13 . . . 61 17 Melee 7 | . . . . . . 7 . Projectile . | . . . . . . . . AOE 84 | . . 13 . . . 54 17 Terrain Rammed . | . . . . . . . . Walls Destroyed . | . . . . . . . . Machines Disabled . | . . . . . . . . Actions | -11 -10 -10 -10 -9 -8 -8 -7 --------- Run | Yrd Mat Min Exi Min Mat Gar Fac Total 5177 | . 212 190 397 70 863 2405 1040 Wait 445 | . 1 6 . . 57 321 60 Move 4056 | . 200 169 386 66 673 1710 852 Hop 5 | . . . . . . . 5 Pick Up 130 | . 4 3 7 . 50 54 12 Fast Attach 34 | . 1 5 1 . 12 8 7 Attach 31 | . 1 1 1 2 8 4 14 Detach 14 | . . 1 1 1 4 3 4 Swap 39 | . . . . . 5 21 13 Drop 77 | . 5 3 1 . 21 32 15 Fire 40 | . . 2 . . . 23 15 Melee 171 | . . . . 1 26 113 31 Ram . | . . . . . . . . Kick . | . . . . . . . . Crush . | . . . . . . . . Escape Stasis . | . . . . . . . . Rewire 101 | . . . . . . 100 1 Trap 34 | . . . . . 7 16 11 Miscellaneous . | . . . . . . . . Route ------- -11/Scrapyard -10/Materials (discovered 3 exits: [*Mat] / *Min x2) -10/Mines -10/Exiles -9/Mines -8/Materials (discovered 2 exits: *Fac / Gar) -8/Garrison (discovered 3 exits: *Fac x3) -7/Factory (discovered 2 exits: [*Fac] / [*Low]) History --------- Turn | Location | Event 1 | -11/Scrapyard | Discovered new exit (range 0) 1 | -11/Scrapyard | Entered Materials 1 | -10/Materials | Released all parts (6) 49 | -10/Materials | Identified exit to Mines 77 | -10/Materials | Discovered new exit (range 5) 112 | -10/Materials | Entered Mines 127 | -10/Mines | Core integrity fell below 50% 130 | -10/Mines | Learned location of Zion (-7) 136 | -10/Mines | Met a Derelict who couldn't figure out how to use a Trap Extractor 186 | -10/Mines | Lost 3 parts (2n1w) 190 | -10/Mines | Found a damaged Exp. Sensor Array with a note attached 191 | -10/Mines | Found Prototype Device 191 | -10/Mines | Identified Exp. Sensor Array 219 | -10/Mines | Deemed a non-threat by the Exiles lab entrance 219 | -10/Mines | Discovered new exit (range 5) 222 | -10/Mines | Entered Exiles 274 | -10/Exiles | Met 8R-AWN 309 | -10/Exiles | Build established: Mutant 330 | -10/Exiles | Met EX-HEX 439 | -10/Exiles | Met EX-BIN 596 | -10/Exiles | Met EX-DEC 1884 | -10/Exiles | Aligned with FarCom system 1894 | -10/Exiles | Given EX-Vault access code 2124 | -10/Exiles | Opened EX-Vault 2164 | -10/Exiles | Found Lightpack 2.0 2185 | -10/Exiles | Found AWS/Autocannon 2236 | -10/Exiles | Found PSU Rigger 2457 | -10/Exiles | Warned to stay clear of 0b10 Research branches 3077 | -10/Exiles | Discovered new exit (range 12) 3177 | -10/Exiles | Stole three prototypes: Lightpack 2.0, PSU Rigger, AWS/Autocannon 3177 | -10/Exiles | Entered Mines 3563 | -9/Mines | Discovered new exit (range 9) 3608 | -9/Mines | Entered Materials 3608 | -8/Materials | Evolved 4 slots: Propulsion x2, Utility x2 3723 | -8/Materials | Met 7R-MNS 3933 | -8/Materials | Build established: Hauler-Mutant 4958 | -8/Materials | Discovered new exit (range 16) 5120 | -8/Materials | Identified exit to Garrison 5121 | -8/Materials | Entered Garrison 5625 | -8/Garrison | Triggered checkpoint 5641 | -8/Garrison | Triggered checkpoint 5732 | -8/Garrison | Discovered new exit (range 9) 5798 | -8/Garrison | Core integrity fell below 50% 5855 | -8/Garrison | Garrison Relay disabled 6027 | -8/Garrison | Triggered checkpoint 6297 | -8/Garrison | Triggered checkpoint 6326 | -8/Garrison | Garrison Relay disabled 6396 | -8/Garrison | Discovered new exit (range 9) 6893 | -8/Garrison | Discovered new exit (range 15) 7013 | -8/Garrison | Installed Relay Interface Framework 7467 | -8/Garrison | Triggered checkpoint 7493 | -8/Garrison | Garrison Relay disabled 7830 | -8/Garrison | Crushed by falling debris 7830 | -8/Garrison | Core integrity fell below 20% 8197 | -8/Garrison | Triggered checkpoint 8210 | -8/Garrison | Garrison Relay disabled 8347 | -8/Garrison | Lost 3 parts (1p2n) 8728 | -8/Garrison | Entered Factory 8728 | -7/Factory | Accompanied by 5 allies 8728 | -7/Factory | Evolved 2 slots: Utility x2 8730 | -7/Factory | FarCom data flow suspended 9071 | -7/Factory | Build established: Bothacker-Mutant 9128 | -7/Factory | First assault squad dispatched 9307 | -7/Factory | Discovered new exit (range 16) 9343 | -7/Factory | Lost 5 allies 9444 | -7/Factory | Discovered new exit (range 7) 9718 | -7/Factory | Lost 11 parts (1p4n4u2w) 9762 | -7/Factory | Core integrity fell below 50% 9782 | -7/Factory | Core integrity fell below 20% 9793 | -7/Factory | Destroyed by H-55 Commando with Gauss Rifle Last Messages --------------- 09774_ Lrn. Proton Cannon destroyed. 09774_ ALERT: Construction progress impeded, dispatching reinforcements to local area. 09775_ Lightpack 2.0 destroyed. 09776_ K-01 Serf collects debris. 09776_ Missile Launcher destroyed. 09778_ Penetrated by Slug. 09778_ K-01 Serf collects debris. 09780_ K-01 Serf destroyed. 09780_ U-05 Engineer lays Concrete. 09781_ Penetrated by Slug. 09782_ K-01 Serf collects debris. 09782_ U-05 Engineer lays Concrete. 09784_ U-05 Engineer builds a Wall. 09784_ Slug penetrates Wall. 09785_ K-01 Serf collects debris. 09789_ U-05 Engineer lays Concrete. 09790_ Adv. ECM Suite destroyed. 09791_ U-05 Engineer builds a Wall. 09792_ K-01 Serf collects debris. 09793_ Penetrated by Slug. Map ----- +----------------------------------------------------+ | ????????????????????????????????????????? | | ????????????????????????????????????????? | | ????????????????????????????????????????? | | ????????????????????????????????????????? | | ????????????????????????????????????????? | | ????????????????????????????????????????? | | ????????????#???????????????????????????? | | ????????????# ??????????????????????????? | | ????????????# ??????????????????????????? | | ????????????#u??????????????????????????? | | ????????????# ??????????????????????????? | | ????????????# #####?????????????????????? | | ????????????# #?????????????????????? | | ????????????# #?????????????????????? | | ????????????+ % #?????????????????????? | | ????????????# % +?????????????????????? | | ????????????# #?????????????????????? | | ????????????# h ###########???????????? | | ????????????# # ! #???????????? | | ????????????# # #???????????? | | ????????????# # #???????????? | | ????????????# # #???????????? | | ????????????# !!!; #???????????? | | ????????????# !!!!# #???????????? | | ????????????# !!!!# #???????????? | | ????????????# !!@!# #???????????? | | ????????????# |!!!##############????????? | | ????????????# b # ?????? | | ????????????# %= # ?????? | | ????????????# ! ; """"""" ?????? | | ????????????# # """""""?????????????? | | ???????????? k """"""??????????????? | | ???????????# = """""???????????????? | | ??????????? %% ???????????????? | | ??????????##*%=g % ######???????????????? | | ??????????? ????????????????????? | | ???????????# =% ##????????????????????? | | ???????????# u##????????????????????? | | ????######?## ##?###????????????????? | | ????? ?# ###T ######???????????? | | ?????"""" ?# ?????????? | | ?????"""" # ?????????? | | ???? """" # ?????????? | | ???? """" + ??????????? | | ???# # ??????????? | | ???# # #### ######???????????? | | ???# ?# #???+#????????????????? | | ???# ?# #?????? ?????????????? | | ???#######??# #????? !/?????????????? | | ????????????# #???? !/?????????????? | +----------------------------------------------------+ Best States ------------- Heat Dissipation 34 Energy Generation 19 Energy Capacity 315 Matter Stores 300 Matter Capacity 300 Sight Range 20 Terrain Scan Density 10 ECM Strength 1 Jamming Range 14 Armor Coverage 150 Resistance: KI 25 Evasion (%) 62 Recoil Reduction 4 Defensive Hacking 10 Relay Coupler Types 1 Relay Coupler Value 28 Trap Extractor Capacity 6 Item Schematics ----------------- Chainsword | -8/Materials | Scanalyzed Fission Core | -8/Materials | Scanalyzed Adv. Weight Redist. System | -8/Materials | Scanalyzed Adv. Hacking Suite | -7/Factory | Hacked Robot Schematics ------------------ None Fabricated ------------ Nothing Alien Tech Used ----------------- None Achievements -------------- None Challenges ------------ None Game ------ Seed VortexDirtyStorage Manual? 0 Play Time 01:08:47 Cumulative 96.8 hours Start 2024.11.16 @ 20:59:22 End 2024.11.16 @ 22:07:33 Sessions 3 Manual Loads 0 Difficulty Rogue Special Mode None Game No. 171 Rogue 171 Adventurer 0 Explorer 0 Win Type - Total 0 Types 0/0/0/0/0/0/0/0/0 Lore% 42 Gallery% 38 Achievement% 34 Wizard Run 0 Options --------- Layout 0 ASCII 0 Keyboard 0 Movement Mouse Keybinds 0 Fullscreen 1 Font 24/Cog Map View 91x25 Zoom Use 90% Tactical HUD 1 Map Filters NONE Filters NONE Steam 1 RUN: d70aa15e-88ba-42a5-abc2-2625aa38bdb9